[Event "75th Argentine Women-ch 2024"]
[Site "Buenos Aires"]
[Date "2024.11.22"]
[Round "1.10"]
[White "Herrera, Solange"]
[Black "Macuri, Genesis"]
[Result "1-0"]
[ECO "D20"]
[WhiteElo "1880"]
[BlackElo "1449"]
[Annotator "NA RC"]
[PlyCount "45"]
[EventDate "2024.11.21"]
[EventType "swiss"]
[EventCountry "ARG"]
[SourceTitle "playchess.com"]
[Source "ChessBase"]
[SourceQuality "1"]
[TimeControl "5400+30"]

1. d4 {[%emt 1:31:00]} d5 {[%emt 1:31:00]} 2. c4 {[%emt 0:00:00]} dxc4 {[%emt 0:00:00]} 3. e4 {[%emt 0:00:00]} e6 {[%emt 0:00:00]} 4. Bxc4 {[%emt 0:00:00]} Be7 {[%emt 0:00:00]} 5. Nf3 {[%emt 0:00:00]} Nf6 {[%emt 0:00:00]} 6. Nc3 {[%emt 0:00:00]} O-O {[%emt 0:00:00]} 7. O-O {[%emt 0:00:00]} Nc6 {[%emt 0:00:00]} 8. d5 {[%emt 0:00:00]} exd5 {[%emt 0:00:00]} 9. exd5 {[%emt 0:00:00]} Na5 {[%emt 0:00:00]} 10. Bd3 {[%emt 0:00:00]} Nxd5 {[%emt 0:00:00]} 11. Nxd5 {[%emt 0:00:00]} Qxd5 {[%emt 0:00:00]} 12. Bxh7+ {[%emt 0:00:00]} Kxh7 {[%emt 0:00:00]} 13. Qxd5 {[%emt 0:00:00]} Nc6 {[%emt 0:00:00]} 14. Bd2 {[%emt 0:00:00]} Nb4 {[%emt 0:06:30]} 15. Bxb4 {[%emt 0:00:00]} Bxb4 {[%emt 0:00:30]} 16. Qe4+ {[%emt 0:00:00]} Kg8 {[%emt 0:00:00]} 17. Qxb4 {[%emt 0:00:00]} a5 {[%emt 0:00:00]} 18. Qf4 {[%emt 0:00:00]} c5 {[%emt 0:00:00]} 19. Rfe1 {[%emt 0:00:00]} b6 {[%emt 0:00:00]} 20. Ng5 {[%emt 0:00:00]} f6 {[%emt 0:00:00]} 21. Qc4+ {[%emt 0:00:00]} Kh8 {[%emt 0:00:00]} 22. Qh4+ {[%emt 0:00:00]} Kg8 {[%emt 0:00:00]} 23. Qh7# {[%emt 0:00:00]} 1-0